[Event "WYCC 2018 G16"]
[Site "Halkidiki"]
[Date "2018.10.28"]
[Round "9"]
[White "Makhija, Aashna"]
[Black "Jarocka, Liwia"]
[Result "1/2-1/2"]
[ECO "B22"]
[WhiteElo "2197"]
[BlackElo "1990"]
[Annotator "NA"]
[PlyCount "124"]
[EventDate "2018.10.20"]
[EventType "swiss"]
[EventCountry "GRE"]
[SourceTitle "playchess.com"]
[Source "ChessBase"]
[SourceQuality "1"]
[TimeControl "40/5400+30:1800+30"]

1. e4 {[%emt 0:00:00]} c5 {[%emt 0:00:00]} 2. c3 {[%emt 0:00:00]} d5 {[%emt 0:00:00]} 3. exd5 {[%emt 0:00:07]} Qxd5 {[%emt 0:00:00]} 4. d4 {[%emt 0:00:17]} Nc6 {[%emt 0:00:17]} 5. Nf3 {[%emt 0:00:33]} Bf5 {[%emt 0:00:12]} 6. Be3 {[%emt 0:00:38]} Nf6 {[%emt 0:00:19]} 7. Na3 {[%emt 0:02:08]} cxd4 {[%emt 0:00:48]} 8. Bc4 {[%emt 0:01:36]} Qa5 {[%emt 0:00:50]} 9. Nxd4 {[%emt 0:01:03]} Nxd4 {[%emt 0:00:23]} 10. Bxd4 {[%emt 0:01:08]} e5 {[%emt 0:00:36]} 11. Bb5+ {[%emt 0:02:22]} Bd7 {[%emt 0:00:14]} 12. Bxd7+ {[%emt 0:01:11]} Nxd7 {[%emt 0:00:06]} 13. Nc4 {[%emt 0:02:45]} Qc7 {[%emt 0:00:22]} 14. Qe2 {[%emt 0:01:23]} O-O-O {[%emt 0:09:47]} 15. Be3 {[%emt 0:17:07]} Bc5 {[%emt 0:00:50]} 16. O-O {[%emt 0:03:24]} f6 {[%emt 0:00:56]} 17. Rfd1 {[%emt 0:06:12]} Kb8 {[%emt 0:02:00]} 18. Rd2 {[%emt 0:05:20]} Nb6 {[%emt 0:05:59]} 19. Nxb6 {[%emt 0:04:07]} Qxb6 {[%emt 0:01:04]} 20. Bxc5 {[%emt 0:01:23]} Qxc5 {[%emt 0:00:07]} 21. Rad1 {[%emt 0:01:08]} Qe7 {[%emt 0:10:04]} 22. Rd3 {[%emt 0:16:19]} Kc7 {[%emt 0:21:01]} 23. h3 {[%emt 0:05:16]} h6 {[%emt 0:05:35]} 24. Rxd8 {[%emt 0:07:33]} Rxd8 {[%emt 0:00:06]} 25. Qc4+ {[%emt 0:00:28]} Kb6 {[%emt 0:01:35]} 26. Qb3+ {[%emt 0:06:57]} Kc7 {[%emt 0:00:54]} 27. Qc4+ {[%emt 0:00:18]} Kb6 {[%emt 0:00:06]} 28. Rxd8 {[%emt 0:01:15]} Qxd8 {[%emt 0:00:04]} 29. a4 {[%emt 0:05:05]} Qd1+ {[%emt 0:06:00]} 30. Kh2 {[%emt 0:00:12]} Qd6 {[%emt 0:01:17]} 31. b4 {[%emt 0:03:33]} a6 {[%emt 0:03:37]} 32. a5+ {[%emt 0:01:16]} Ka7 {[%emt 0:00:05]} 33. Qe4 {[%emt 0:01:52]} Qd2 {[%emt 0:07:14]} 34. Qf3 {[%emt 0:01:20]} b6 {[%emt 0:01:22]} 35. Qg3 {[%emt 0:01:27]} g5 {[%emt 0:05:01]} 36. Qf3 {[%emt 0:00:36]} bxa5 {[%emt 0:04:56]} 37. Qxf6 {[%emt 0:00:34]} axb4 {[%emt 0:01:43]} 38. Qe7+ {[%emt 0:00:18]} Ka8 {[%emt 0:00:18]} 39. Qf8+ {[%emt 0:00:32]} Ka7 {[%emt 0:00:24]} 40. Qc5+ {[%emt 0:00:00]} Ka8 {[%emt 0:00:00]} 41. cxb4 {[%emt 0:06:09]} Qf4+ {[%emt 0:01:13]} 42. Kg1 {[%emt 0:01:19]} h5 {[%emt 0:02:08]} 43. Qc8+ {[%emt 0:05:00]} Ka7 {[%emt 0:00:04]} 44. Qc7+ {[%emt 0:01:08]} Ka8 {[%emt 0:00:04]} 45. Qb6 {[%emt 0:01:33]} Qc4 {[%emt 0:01:47]} 46. Qd8+ {[%emt 0:01:50]} Kb7 {[%emt 0:00:15]} 47. Qe7+ {[%emt 0:04:19]} Kc6 {[%emt 0:02:36]} 48. Qxe5 {[%emt 0:03:29]} Qxb4 {[%emt 0:00:13]} 49. Qf6+ {[%emt 0:01:30]} Kb7 {[%emt 0:01:06]} 50. Qf7+ {[%emt 0:01:08]} Kb6 {[%emt 0:00:15]} 51. Qxh5 {[%emt 0:01:50]} a5 {[%emt 0:00:11]} 52. Qg6+ {[%emt 0:00:48]} Kb7 {[%emt 0:00:12]} 53. Qxg5 {[%emt 0:02:57]} a4 {[%emt 0:00:16]} 54. Qd5+ {[%emt 0:00:19]} Kb6 {[%emt 0:00:15]} 55. Qe6+ {[%emt 0:01:29]} Kc5 {[%emt 0:06:46]} 56. Qe5+ {[%emt 0:00:48]} Kc4 {[%emt 0:01:29]} 57. Qe4+ {[%emt 0:00:19]} Kb3 {[%emt 0:01:27]} 58. Qb1+ {[%emt 0:00:23]} Kc3 {[%emt 0:00:12]} 59. Qe1+ {[%emt 0:00:29]} Kb3 {[%emt 0:00:23]} 60. Qb1+ {[%emt 0:00:18]} Kc3 {[%emt 0:00:12]} 61. Qe1+ {[%emt 0:00:07]} Kc4 {[%emt 0:00:15]} 62. Qe4+ {[%emt 0:00:09] Kd5} Kc3 {[%emt 0:00:07]} 1/2-1/2

[Event "WYCC 2018 G16"]
[Site "Halkidiki"]
[Date "2018.10.28"]
[Round "9"]
[White "Serikbay, Assel"]
[Black "Berdnyk, Mariia"]
[Result "0-1"]
[ECO "E63"]
[WhiteElo "2166"]
[BlackElo "2179"]
[Annotator "NA"]
[PlyCount "132"]
[EventDate "2018.10.20"]
[EventType "swiss"]
[EventCountry "GRE"]
[SourceTitle "playchess.com"]
[Source "ChessBase"]
[SourceQuality "1"]
[TimeControl "40/5400+30:1800+30"]

1. d4 {[%emt 0:00:00]} Nf6 {[%emt 0:00:00]} 2. c4 {[%emt 0:00:00]} g6 {[%emt 0:00:00]} 3. g3 {[%emt 0:00:00]} Bg7 {[%emt 0:00:00]} 4. Bg2 {[%emt 0:00:00]} O-O {[%emt 0:00:00]} 5. Nf3 {[%emt 0:00:00]} d6 {[%emt 0:00:00]} 6. O-O {[%emt 0:00:14]} Nc6 {[%emt 0:00:00]} 7. Nc3 {[%emt 0:00:10]} a6 {[%emt 0:00:00]} 8. d5 {[%emt 0:02:16]} Na5 {[%emt 0:00:13]} 9. Qd3 {[%emt 0:01:27]} c5 {[%emt 0:00:09]} 10. Nd2 {[%emt 0:10:09]} Rb8 {[%emt 0:13:29]} 11. a4 {[%emt 0:02:45]} Ng4 {[%emt 0:10:58]} 12. e4 {[%emt 0:01:13]} e6 {[%emt 0:02:46]} 13. Qe2 {[%emt 0:09:48]} exd5 {[%emt 0:02:39]} 14. Nxd5 {[%emt 0:00:13]} Ne5 {[%emt 0:05:33]} 15. Rb1 {[%emt 0:14:23]} Nec6 {[%emt 0:04:45]} 16. b4 {[%emt 0:10:47]} Nxb4 {[%emt 0:03:33]} 17. Nxb4 {[%emt 0:00:10]} cxb4 {[%emt 0:00:02]} 18. Rxb4 {[%emt 0:00:06]} Nc6 {[%emt 0:01:19]} 19. Rb1 {[%emt 0:00:26]} Qa5 {[%emt 0:04:32]} 20. Qd3 {[%emt 0:13:43]} Be6 {[%emt 0:03:37]} 21. Qxd6 {[%emt 0:11:04]} Rfd8 {[%emt 0:04:05]} 22. Qf4 {[%emt 0:00:06]} Ne5 {[%emt 0:01:51]} 23. Nb3 {[%emt 0:02:25]} Qxa4 {[%emt 0:01:12]} 24. Nc5 {[%emt 0:04:46]} Qxc4 {[%emt 0:01:18]} 25. Ba3 {[%emt 0:06:31]} Nd3 {[%emt 0:02:26]} 26. Nxd3 {[%emt 0:00:04]} Qxd3 {[%emt 0:00:04]} 27. Be7 {[%emt 0:00:09]} Re8 {[%emt 0:03:37]} 28. Rfd1 {[%emt 0:00:30]} Qc2 {[%emt 0:04:04]} 29. Rdc1 {[%emt 0:04:04]} Qa4 {[%emt 0:02:48]} 30. Bd6 {[%emt 0:01:45]} Rbc8 {[%emt 0:04:56]} 31. Rxb7 {[%emt 0:00:20]} Red8 {[%emt 0:01:42]} 32. Rxc8 {[%emt 0:05:32]} Qd1+ {[%emt 0:00:21]} 33. Bf1 {[%emt 0:00:01]} Rxc8 34. e5 {[%emt 0:00:48]} Rc1 {[%emt 0:05:48]} 35. Rb8+ {[%emt 0:00:40]} Bc8 {[%emt 0:00:04]} 36. Rxc8+ {[%emt 0:00:50]} Rxc8 {[%emt 0:00:05]} 37. Kg2 {[%emt 0:00:18]} Qd5+ {[%emt 0:00:27]} 38. Kh3 {[%emt 0:00:33]} Qc6 {[%emt 0:04:42]} 39. Qg4 {[%emt 0:00:36]} h5 {[%emt 0:00:42]} 40. Qe2 {[%emt 0:00:00]} a5 {[%emt 0:00:00]} 41. Qa2 {[%emt 0:02:47]} a4 {[%emt 0:08:27]} 42. Bd3 {[%emt 0:04:26]} Qf3 {[%emt 0:00:41]} 43. Qb1 {[%emt 0:02:28]} a3 {[%emt 0:05:11]} 44. Bxa3 {[%emt 0:05:57]} Rc3 {[%emt 0:00:21]} 45. e6 {[%emt 0:03:32]} fxe6 {[%emt 0:02:10]} 46. Bxg6 {[%emt 0:02:52]} Rxa3 {[%emt 0:00:13]} 47. Qb8+ {[%emt 0:00:16]} Bf8 {[%emt 0:00:16]} 48. Qe8 {[%emt 0:00:43]} Qg4+ {[%emt 0:04:17]} 49. Kg2 {[%emt 0:00:05]} Ra7 {[%emt 0:02:11]} 50. h3 {[%emt 0:01:45]} Qc4 {[%emt 0:00:27]} 51. Bxh5 {[%emt 0:00:04]} Qd5+ {[%emt 0:00:18]} 52. Bf3 {[%emt 0:00:09]} Qd7 {[%emt 0:01:19]} 53. Qg6+ {[%emt 0:00:06]} Bg7 {[%emt 0:00:09]} 54. Bg4 {[%emt 0:01:29]} Ra6 55. h4 {[%emt 0:00:33]} Qf7 {[%emt 0:02:07]} 56. Qe4 {[%emt 0:00:14]} Rb6 {[%emt 0:02:11]} 57. h5 {[%emt 0:03:00]} Qf6 {[%emt 0:03:24]} 58. f4 {[%emt 0:04:03]} Kh8 {[%emt 0:01:42]} 59. Kh3 {[%emt 0:01:29]} e5 {[%emt 0:01:08]} 60. Qa8+ {[%emt 0:00:35]} Qf8 {[%emt 0:00:25]} 61. Qa5 {[%emt 0:02:50]} Qb8 {[%emt 0:00:21]} 62. f5 {[%emt 0:01:24]} e4 {[%emt 0:00:31]} 63. Bd1 {[%emt 0:00:24]} Rb5 {[%emt 0:01:37]} 64. Qa4 {[%emt 0:00:58]} Qe5 {[%emt 0:00:28]} 65. g4 {[%emt 0:00:43]} Rb2 {[%emt 0:00:35]} 66. Bc2 {[%emt 0:00:04]} Qc3+ {[%emt 0:00:06]} 0-1

[Event "WYCC 2018 G16"]
[Site "Halkidiki"]
[Date "2018.10.28"]
[Round "9"]
[White "Peycheva, Gergana"]
[Black "Esadze, Tamari"]
[Result "1/2-1/2"]
[ECO "E12"]
[WhiteElo "2152"]
[BlackElo "1911"]
[Annotator "NA"]
[PlyCount "132"]
[EventDate "2018.10.20"]
[EventType "swiss"]
[EventCountry "GRE"]
[SourceTitle "playchess.com"]
[Source "ChessBase"]
[SourceQuality "1"]
[TimeControl "40/5400+30:1800+30"]

1. d4 {[%emt 0:00:00]} Nf6 {[%emt 0:00:00]} 2. c4 {[%emt 0:00:00]} e6 {[%emt 0:00:00]} 3. Nf3 {[%emt 0:00:16]} b6 {[%emt 0:00:00]} 4. a3 {[%emt 0:00:42]} Bb7 {[%emt 0:00:00]} 5. Nc3 {[%emt 0:00:50]} d5 {[%emt 0:00:24]} 6. cxd5 {[%emt 0:00:56]} Nxd5 {[%emt 0:00:06]} 7. e3 {[%emt 0:01:58]} Nxc3 {[%emt 0:00:25]} 8. bxc3 {[%emt 0:00:17]} Be7 {[%emt 0:00:20]} 9. Bb5+ {[%emt 0:01:40]} c6 {[%emt 0:00:11]} 10. Bd3 {[%emt 0:00:57]} O-O {[%emt 0:00:20]} 11. O-O {[%emt 0:04:35]} c5 {[%emt 0:01:15]} 12. e4 {[%emt 0:02:08]} Qc7 {[%emt 0:04:56]} 13. Qe2 {[%emt 0:05:50]} Nc6 {[%emt 0:05:17]} 14. Rd1 {[%emt 0:06:16]} Na5 {[%emt 0:02:30]} 15. Be3 {[%emt 0:04:38]} Rfd8 {[%emt 0:07:56]} 16. a4 {[%emt 0:05:17]} Rac8 {[%emt 0:02:21]} 17. h4 {[%emt 0:02:44]} cxd4 {[%emt 0:10:52]} 18. cxd4 {[%emt 0:01:08]} Qd6 {[%emt 0:16:28]} 19. h5 {[%emt 0:06:18]} h6 {[%emt 0:09:52]} 20. Bb1 {[%emt 0:07:36]} Qb4 {[%emt 0:13:00]} 21. Bd2 {[%emt 0:07:02]} Qb2 {[%emt 0:06:51]} 22. Ra2 {[%emt 0:07:53]} Qb3 {[%emt 0:00:43]} 23. Bxa5 {[%emt 0:02:30]} bxa5 {[%emt 0:02:23]} 24. Bd3 {[%emt 0:03:21]} Qc3 {[%emt 0:05:05]} 25. Bb5 {[%emt 0:08:54]} Bb4 {[%emt 0:02:46]} 26. Rad2 {[%emt 0:02:33]} Qc7 {[%emt 0:01:19]} 27. Ra2 {[%emt 0:02:34]} Qf4 {[%emt 0:00:22]} 28. Bd3 {[%emt 0:01:21]} Rc3 {[%emt 0:01:48]} 29. Rc2 {[%emt 0:04:35]} Rxd3 {[%emt 0:02:14]} 30. Rxd3 {[%emt 0:02:21]} Bxe4 {[%emt 0:00:04]} 31. Rd1 {[%emt 0:00:29]} Bxc2 {[%emt 0:00:07]} 32. Qxc2 {[%emt 0:00:03]} Qd6 {[%emt 0:02:55]} 33. Rc1 {[%emt 0:01:19]} Ba3 {[%emt 0:00:05]} 34. Ra1 {[%emt 0:01:26]} Rb8 {[%emt 0:00:21]} 35. Qd3 {[%emt 0:01:04]} Bb4 {[%emt 0:01:57]} 36. Rc1 {[%emt 0:01:30]} Qd5 {[%emt 0:00:23]} 37. Ne5 {[%emt 0:00:40]} Bd6 {[%emt 0:00:56]} 38. Nc6 {[%emt 0:00:47]} Re8 {[%emt 0:01:34]} 39. Qb5 {[%emt 0:03:52]} a6 {[%emt 0:00:22]} 40. Qxa6 {[%emt 0:00:00]} Qxh5 {[%emt 0:00:00]} 41. g3 {[%emt 0:03:38]} Qg5 {[%emt 0:05:53]} 42. Rc3 {[%emt 0:04:25]} h5 {[%emt 0:11:57]} 43. Nxa5 {[%emt 0:03:36]} Qd2 {[%emt 0:06:46]} 44. Rd3 {[%emt 0:08:01]} Qe1+ {[%emt 0:01:14]} 45. Kg2 {[%emt 0:00:23]} Qe4+ {[%emt 0:00:18]} 46. Rf3 {[%emt 0:03:05]} Qxd4 {[%emt 0:03:30]} 47. Qb5 {[%emt 0:01:56]} Rf8 {[%emt 0:01:23]} 48. Nb3 {[%emt 0:00:57]} Qe4 {[%emt 0:01:03]} 49. Nd2 {[%emt 0:01:35]} Qb4 {[%emt 0:01:46]} 50. Nc4 {[%emt 0:02:53]} Qxb5 {[%emt 0:01:28]} 51. axb5 {[%emt 0:00:02]} Bc5 {[%emt 0:00:20]} 52. b6 {[%emt 0:01:29]} Rb8 {[%emt 0:00:09]} 53. Rb3 {[%emt 0:00:05]} Rb7 {[%emt 0:00:04]} 54. Rb5 {[%emt 0:00:07]} Bd4 {[%emt 0:00:51]} 55. Rxh5 {[%emt 0:00:22]} e5 {[%emt 0:00:49]} 56. Rh1 {[%emt 0:01:48]} f6 {[%emt 0:00:54]} 57. Kf3 {[%emt 0:00:44]} g6 {[%emt 0:01:00]} 58. Ke2 {[%emt 0:00:54]} Kg7 {[%emt 0:00:05]} 59. Rb1 {[%emt 0:01:16]} Kf8 {[%emt 0:00:06]} 60. f3 {[%emt 0:01:18]} Ke7 {[%emt 0:00:15]} 61. Rh1 {[%emt 0:00:11]} Ke6 {[%emt 0:00:11]} 62. Rb1 {[%emt 0:00:45]} Kd5 {[%emt 0:00:21]} 63. Kd3 {[%emt 0:00:23]} f5 {[%emt 0:00:29]} 64. Rb5+ {[%emt 0:01:05]} Kc6 {[%emt 0:01:13]} 65. Rb1 {[%emt 0:00:06]} Kd5 {[%emt 0:01:16]} 66. Rb5+ {[%emt 0:01:07]} Kc6 {[%emt 0:00:03] Ke4} 1/2-1/2

[Event "WYCC 2018 G16"]
[Site "Halkidiki"]
[Date "2018.10.28"]
[Round "9"]
[White "Cervantes Landeiro, Thalia"]
[Black "Aciu, Malina-Andreea"]
[Result "1/2-1/2"]
[ECO "E77"]
[WhiteElo "2129"]
[BlackElo "1976"]
[Annotator "NA"]
[PlyCount "118"]
[EventDate "2018.10.20"]
[EventType "swiss"]
[EventCountry "GRE"]
[SourceTitle "playchess.com"]
[Source "ChessBase"]
[SourceQuality "1"]
[TimeControl "40/5400+30:1800+30"]

1. d4 {[%emt 0:00:00]} Nf6 {[%emt 0:00:00]} 2. c4 {[%emt 0:00:00]} g6 {[%emt 0:00:00]} 3. Nc3 {[%emt 0:00:00]} Bg7 {[%emt 0:00:00]} 4. e4 {[%emt 0:00:00]} d6 {[%emt 0:00:00]} 5. f4 {[%emt 0:00:00]} c5 {[%emt 0:00:00]} 6. d5 {[%emt 0:00:00]} O-O {[%emt 0:00:01]} 7. Nf3 {[%emt 0:00:00]} e6 {[%emt 0:00:07]} 8. dxe6 {[%emt 0:00:00]} fxe6 {[%emt 0:00:04]} 9. Bd3 {[%emt 0:00:04]} Nc6 {[%emt 0:00:04]} 10. O-O {[%emt 0:00:05]} Nd4 {[%emt 0:00:02]} 11. Kh1 Nh5 {[%emt 0:00:05]} 12. f5 {[%emt 0:00:38]} exf5 {[%emt 0:00:05]} 13. Bg5 {[%emt 0:00:10]} Qe8 {[%emt 0:00:03]} 14. exf5 {[%emt 0:00:36]} Bxf5 {[%emt 0:00:07]} 15. Nxd4 {[%emt 0:02:35]} cxd4 {[%emt 0:00:06]} 16. Nd5 {[%emt 0:03:28]} Bxd3 {[%emt 0:00:07]} 17. Rxf8+ {[%emt 0:02:37]} Bxf8 {[%emt 0:00:07]} 18. Qxd3 {[%emt 0:37:58]} Qe5 {[%emt 0:00:06]} 19. g4 {[%emt 0:06:06]} Ng3+ {[%emt 0:10:59]} 20. hxg3 {[%emt 0:01:10]} Qxg5 {[%emt 0:00:22]} 21. Qxd4 {[%emt 0:00:55]} Bg7 {[%emt 0:03:49]} 22. Qf4 {[%emt 0:10:26]} Qe5 {[%emt 0:06:46]} 23. Qxe5 {[%emt 0:01:17]} Bxe5 {[%emt 0:00:19]} 24. Kg2 {[%emt 0:00:08]} Kg7 {[%emt 0:08:11]} 25. Rd1 {[%emt 0:05:28]} Rc8 {[%emt 0:02:07]} 26. b3 {[%emt 0:00:40]} Rc5 {[%emt 0:06:49]} 27. Nf4 {[%emt 0:11:56]} Ra5 {[%emt 0:02:51]} 28. a4 {[%emt 0:03:00]} Ra6 {[%emt 0:08:16]} 29. Ne6+ {[%emt 0:02:04]} Kf6 {[%emt 0:04:50]} 30. Nc7 {[%emt 0:00:32]} Rc6 {[%emt 0:00:23]} 31. Nd5+ {[%emt 0:00:33]} Kg7 {[%emt 0:00:56]} 32. Rd3 {[%emt 0:04:49]} Rc8 {[%emt 0:01:03]} 33. Nf4 {[%emt 0:01:00]} Re8 {[%emt 0:01:56]} 34. c5 {[%emt 0:01:42]} dxc5 {[%emt 0:07:08]} 35. Rd7+ {[%emt 0:00:13]} Kg8 {[%emt 0:00:19]} 36. Rxb7 {[%emt 0:00:12]} Rb8 {[%emt 0:10:04]} 37. Rxa7 {[%emt 0:06:24]} Rxb3 {[%emt 0:00:11]} 38. Ra8+ {[%emt 0:00:57]} Kf7 {[%emt 0:01:57]} 39. a5 {[%emt 0:01:09]} Ra3 {[%emt 0:01:16]} 40. a6 {[%emt 0:00:00]} c4 {[%emt 0:00:00]} 41. Ne2 {[%emt 0:15:48]} c3 {[%emt 0:05:32]} 42. a7 {[%emt 0:04:39]} c2 {[%emt 0:01:48]} 43. Rc8 {[%emt 0:04:35]} Rxa7 {[%emt 0:00:20]} 44. Rxc2 {[%emt 0:00:02]} Ra3 {[%emt 0:02:09]} 45. Rc5 {[%emt 0:00:58]} Bd6 {[%emt 0:04:27]} 46. Rb5 {[%emt 0:00:23]} Ra2 {[%emt 0:02:53]} 47. Kf3 {[%emt 0:00:34]} Ra3+ {[%emt 0:00:22]} 48. Kf2 {[%emt 0:00:05]} Ra4 {[%emt 0:01:01]} 49. g5 {[%emt 0:01:22]} Rb4 {[%emt 0:03:13]} 50. Ra5 {[%emt 0:00:51]} Rc4 {[%emt 0:01:28]} 51. Ra7+ {[%emt 0:00:23]} Rc7 {[%emt 0:00:16]} 52. Ra5 {[%emt 0:01:39]} Rc5 {[%emt 0:00:30]} 53. Ra7+ {[%emt 0:02:05]} Rc7 {[%emt 0:00:04]} 54. Rxc7+ {[%emt 0:01:37]} Bxc7 {[%emt 0:00:04]} 55. Kf3 {[%emt 0:00:14]} Be5 {[%emt 0:00:53]} 56. Kg4 {[%emt 0:00:51]} Kg7 {[%emt 0:01:28]} 57. Ng1 {[%emt 0:00:22]} h6 {[%emt 0:00:38]} 58. Nf3 {[%emt 0:00:07]} Bxg3 {[%emt 0:00:35]} 59. gxh6+ {[%emt 0:00:19]} Kxh6 {[%emt 0:00:08]} 1/2-1/2

[Event "WYCC 2018 G16"]
[Site "Halkidiki"]
[Date "2018.10.28"]
[Round "9"]
[White "Schulze, Lara"]
[Black "Yurasova, Daria"]
[Result "1-0"]
[ECO "B07"]
[WhiteElo "2122"]
[BlackElo "2193"]
[Annotator "NA"]
[PlyCount "73"]
[EventDate "2018.10.20"]
[EventType "swiss"]
[EventCountry "GRE"]
[SourceTitle "playchess.com"]
[Source "ChessBase"]
[SourceQuality "1"]
[TimeControl "40/5400+30:1800+30"]

1. e4 {[%emt 0:00:00]} d6 {[%emt 0:01:14]} 2. d4 {[%emt 0:00:00]} Nf6 {[%emt 0:00:11]} 3. Nc3 {[%emt 0:00:00]} Nbd7 {[%emt 0:00:10]} 4. g4 {[%emt 0:00:00]} h6 {[%emt 0:01:05]} 5. h3 {[%emt 0:00:33]} e5 {[%emt 0:00:28]} 6. Bg2 {[%emt 0:00:13]} Be7 {[%emt 0:00:37]} 7. Nge2 {[%emt 0:01:01]} O-O {[%emt 0:06:52]} 8. Be3 {[%emt 0:01:18]} c6 {[%emt 0:03:01]} 9. O-O {[%emt 0:02:22]} b5 {[%emt 0:14:15]} 10. a3 {[%emt 0:00:25]} Nb6 {[%emt 0:04:21]} 11. Ng3 {[%emt 0:09:46]} exd4 {[%emt 0:21:09]} 12. Bxd4 {[%emt 0:05:00]} c5 {[%emt 0:04:57]} 13. Be3 $14 {[%emt 0:14:18]} Rb8 {[%emt 0:01:16]} 14. b3 {[%emt 0:04:34]} Ba6 {[%emt 0:04:21]} 15. Re1 {[%emt 0:07:05]} Nfd7 {[%emt 0:04:38]} 16. Rb1 {[%emt 0:14:01]} Ne5 {[%emt 0:09:57]} 17. Nf5 {[%emt 0:04:54]} Re8 {[%emt 0:03:54]} 18. Bf1 {[%emt 0:06:32]} c4 {[%emt 0:07:44]} 19. Nxe7+ {[%emt 0:18:34]} Qxe7 {[%emt 0:00:08]} 20. f4 {[%emt 0:02:52]} Ng6 {[%emt 0:00:41]} 21. Qf3 {[%emt 0:01:18]} Qc7 {[%emt 0:01:39]} 22. Bd4 {[%emt 0:00:49]} Nf8 {[%emt 0:01:25]} 23. Nd5 {[%emt 0:02:37]} Nxd5 {[%emt 0:00:36]} 24. exd5 {[%emt 0:00:02]} Nd7 {[%emt 0:00:42]} 25. b4 {[%emt 0:00:24]} Nb6 {[%emt 0:00:12]} 26. Bg2 {[%emt 0:00:52]} Bb7 {[%emt 0:01:06]} 27. Qc3 {[%emt 0:02:07]} Na4 {[%emt 0:02:34]} 28. Qg3 {[%emt 0:00:31]} a5 {[%emt 0:01:29]} 29. g5 {[%emt 0:00:25]} h5 {[%emt 0:00:04]} 30. g6 {[%emt 0:01:14]} axb4 {[%emt 0:01:30]} 31. axb4 {[%emt 0:00:28]} Rbd8 {[%emt 0:01:35]} 32. Bf3 {[%emt 0:00:34]} h4 {[%emt 0:01:01]} 33. Qxh4 {[%emt 0:00:35]} fxg6 {[%emt 0:00:01]} 34. Qg5 {[%emt 0:00:40]} Qf7 {[%emt 0:00:24]} 35. Be4 {[%emt 0:00:32]} Rf8 {[%emt 0:01:12]} 36. Bxg6 {[%emt 0:00:16]} Qxf4 {[%emt 0:00:14]} 37. Bh7+ {[%emt 0:00:14]} 1-0

[Event "WYCC 2018 G16"]
[Site "Halkidiki"]
[Date "2018.10.28"]
[Round "9"]
[White "Grigorieva, Yulia"]
[Black "Xing, Ashley"]
[Result "0-1"]
[ECO "E46"]
[WhiteElo "2112"]
[BlackElo "1889"]
[Annotator "NA"]
[PlyCount "82"]
[EventDate "2018.10.20"]
[EventType "swiss"]
[EventCountry "GRE"]
[SourceTitle "playchess.com"]
[Source "ChessBase"]
[SourceQuality "1"]
[TimeControl "40/5400+30:1800+30"]

1. d4 {[%emt 0:00:00]} Nf6 {[%emt 0:00:00]} 2. c4 {[%emt 0:00:00]} e6 {[%emt 0:00:00]} 3. Nc3 {[%emt 0:00:00]} Bb4 {[%emt 0:00:00]} 4. e3 {[%emt 0:00:00]} O-O {[%emt 0:00:00]} 5. Nge2 {[%emt 0:00:09]} Re8 {[%emt 0:00:00]} 6. a3 {[%emt 0:00:26]} Bf8 {[%emt 0:00:06]} 7. Ng3 {[%emt 0:00:39]} d5 {[%emt 0:01:20]} 8. Be2 {[%emt 0:01:16]} b6 {[%emt 0:01:10]} 9. cxd5 {[%emt 0:05:47]} exd5 {[%emt 0:00:35]} 10. b4 {[%emt 0:01:00]} Bb7 {[%emt 0:04:03]} 11. O-O {[%emt 0:05:16]} Nbd7 {[%emt 0:03:34]} 12. Rb1 {[%emt 0:11:34]} Ne4 {[%emt 0:08:45]} 13. Qc2 {[%emt 0:13:23]} Ndf6 {[%emt 0:14:04]} 14. Bd2 {[%emt 0:05:00]} Rc8 {[%emt 0:11:17]} 15. a4 {[%emt 0:07:21]} Qd7 {[%emt 0:06:20]} 16. Rfc1 {[%emt 0:06:07]} c6 {[%emt 0:09:17]} 17. Bd3 {[%emt 0:06:19]} c5 {[%emt 0:09:40]} 18. Ncxe4 {[%emt 0:08:24]} Nxe4 {[%emt 0:08:50]} 19. Nxe4 {[%emt 0:01:46]} dxe4 {[%emt 0:00:11]} 20. Bb5 {[%emt 0:00:11]} Bc6 {[%emt 0:00:21]} 21. bxc5 {[%emt 0:02:32]} bxc5 {[%emt 0:02:58]} 22. dxc5 {[%emt 0:02:37]} Re5 {[%emt 0:01:44]} 23. Bxc6 {[%emt 0:05:35]} Qxc6 {[%emt 0:02:53]} 24. Bb4 {[%emt 0:01:15]} h6 {[%emt 0:02:18]} 25. Qb2 {[%emt 0:05:15]} Rh5 {[%emt 0:05:55]} 26. Rc4 {[%emt 0:02:32]} Qxa4 {[%emt 0:02:04]} 27. Rxe4 {[%emt 0:01:47]} a5 {[%emt 0:02:13]} 28. Qe2 {[%emt 0:06:12]} Rhxc5 {[%emt 0:01:11]} 29. g3 {[%emt 0:01:22]} axb4 {[%emt 0:01:13]} 30. Kg2 {[%emt 0:00:22]} Qc2 {[%emt 0:00:27]} 31. Qxc2 {[%emt 0:00:35]} Rxc2 {[%emt 0:00:05]} 32. Rd4 {[%emt 0:00:15]} R2c3 {[%emt 0:00:20]} 33. Rd7 {[%emt 0:00:35]} Rb8 {[%emt 0:00:32]} 34. Kf3 {[%emt 0:00:30]} b3 {[%emt 0:00:13]} 35. Rdd1 {[%emt 0:00:39]} Rc2 {[%emt 0:00:32]} 36. e4 {[%emt 0:00:33]} b2 {[%emt 0:00:57]} 37. h4 {[%emt 0:00:12]} Ba3 {[%emt 0:00:40]} 38. e5 {[%emt 0:00:29]} Rc1 {[%emt 0:00:21]} 39. e6 {[%emt 0:00:08]} fxe6 {[%emt 0:00:09]} 40. Kg4 {[%emt 0:00:00]} Rxd1 {[%emt 0:00:00]} 41. Kh5 {[%emt 0:00:57]} Rxb1 {[%emt 0:00:18]} 0-1